Cogmind - Beta 14 --- EXPLORER MODE // 2024.09.03 @ 00:01:16 Player: Khazzy Result: Destroyed by as-58086 with Assembled Heavy Rifle Performance ------------- Evolutions (0) 0 Regions Visited (2) 400 Robots Destroyed (3) 15 Value Destroyed (115) 115 Prototype IDs (0) 0 Alien Tech Used (0) 0 Bonus (0) 0 TOTAL SCORE: 530 Bonus ------- None Cogmind --------- Core Integrity 0/250 Matter 300/300 Energy 99/100 System Corruption 0% Temperature Cool (0) Movement Core (50) Location -10/Mines Parts ------- > --- POWER (1) -------- (None) > --- PROPULSION (2) --- (None) > --- UTILITY (3) ------ Targeting Computer > --- WEAPON (2) ------- (None) > --- INVENTORY (5) ---- Light Ion Engine High-capacity Battery (250) Medium Matter Pod (14) Assault Rifle Peak State ------------ > --- POWER ------------ Light Ion Engine > --- PROPULSION ------- Aluminum Leg Aluminum Leg > --- UTILITY ---------- Medium Storage Unit Targeting Computer Light Armor Plating > --- WEAPON ----------- Medium Laser Light Assault Rifle > --- INVENTORY -------- Light Ion Engine EM Pulse Gun [Rating: 8] Favorites ----------- Power Light Ion Engine Engine Light Ion Engine Propulsion Aluminum Leg Leg Aluminum Leg Utility Targeting Computer Device ECM Suite Storage Medium Storage Unit Processor Targeting Computer Protection Light Armor Plating Weapon Light Assault Rifle Energy Gun Medium Laser Ballistic Gun Light Assault Rifle Build | -11 -10 -10 ------- Run | Yrd Mat Min Slots Evolved 1 | . 1 . Power . | . . . Propulsion . | . . . Utility 1 | . 1 . Weapon . | . . . Parts Attached 10 | 7 2 1 Power 1 | 1 . . Engine 1 | 1 . . Core . | . . . Reactor . | . . . Propulsion 3 | 2 . 1 Treads . | . . . Leg 3 | 2 . 1 Wheel . | . . . Hover . | . . . Flight . | . . . Utility 4 | 2 2 . Device 1 | . 1 . Storage 1 | 1 . . Processor 1 | 1 . . Hackware . | . . . Protection 1 | . 1 . Artifact . | . . . Weapon 2 | 2 . . Energy Gun 1 | 1 . . Energy Cannon . | . . . Ballistic Gun 1 | 1 . . Ballistic Cannon . | . . . Launcher . | . . . Special Weapon . | . . . Impact Weapon . | . . . Slashing Weapon . | . . . Piercing Weapon . | . . . Special Melee Weapon . | . . . Unidentified Prototypes . | . . . Parts Lost 8 | . . 8 Power 1 | . . 1 Propulsion 3 | . . 3 Utility 2 | . . 2 Weapon 2 | . . 2 Highest Loss Streak 8 | . . 8 To Critical Strikes 1 | . . 1 Average Slot Usage (%) 97 | . 100 93 Engine 12 | . 12 12 Leg 24 | . 25 23 Device 10 | . 9 10 Storage 1 | . 2 . Processor 12 | . 12 12 Protection 11 | . 12 10 Energy Gun 11 | . 12 11 Ballistic Gun 11 | . 12 11 Peak Build Rating 8 | 7 8 8 Average Rating 7 | 4 7 7 On Entrance 5 | . 7 8 Naked Turns . | . . . Heaviest Build 19 | 16 19 11 Greatest Support 20 | 20 20 20 Greatest Overweight (x) 4 | 4 . 1 Average Overweight (x) . | . . . Largest Inventory Capacity 10 | 10 10 5 Average Capacity 5 | 8 5 5 Most Carried 6 | 6 5 5 Average Carried 3 | 3 3 4 Final Capacity 10 | 10 5 5 Final Carried 5 | 3 5 4 Class Distribution -------------------- 100% | Hacker-Mutant Dominant Class ---------------- Hacker-Mutant | -10/Materials Hacker-Mutant | -10/Mines Resources | -11 -10 -10 ----------- Run | Yrd Mat Min Matter Collected 279 | 195 84 . Remotely . | . . . Salvage Created 115 | . 115 . Parts 3 | . 3 . Haulers Intercepted . | . . . Recyclers Shooed 1 | . 1 . Parts Field Recycled . | . . . Retrieved Matter . | . . . Parts Self-Destructed . | . . . Prevented . | . . . Kills | -11 -10 -10 ------- Run | Yrd Mat Min Combat Hostiles Destroyed 3 | . 3 . Guns 3 | . 3 . Classes Destroyed 1 | . 1 . Grunt 3 | . 3 . Best Kill Streak 2 | . 2 . Combat Bots Only 2 | . 2 . Max Kills in Single Turn 2 | . 2 . Gunslinging 1 | . 1 . Exploded . | . . . Melee . | . . . Uniques/NPCs Destroyed . | . . . Combat | -11 -10 -10 -------- Run | Yrd Mat Min Hostile Shots Fired 111 | . 20 91 Missed 38 | . 2 36 Damage Taken 836 | . 152 684 Core 257 | . 47 210 Absorbed by Shields . | . . . Ignored by Resistances 497 | . 99 398 Core Remaining (%) 100 | 100 . . Volleys Fired 12 | . 11 1 Largest 2 | . 2 2 Hottest 70 | . 70 70 Shots Fired 24 | . 22 2 Gun 24 | . 22 2 Cannon . | . . . Launcher . | . . . Special . | . . . Kinetic 12 | . 11 1 Thermal 12 | . 11 1 Explosive . | . . . Electromagnetic . | . . . Robot Hit Streak 13 | . 11 13 Robot Miss Streak 1 | . 1 . Penetration Max . | . . . Secondary Targets 1 | . 1 . Max Gunslinging Chain 1 | . 1 . Shots Hit Robots 22 | . 20 2 Core Hits 8 | . 7 1 Critical Kills . | . . . Critical Parts Destroyed . | . . . Critical Strikes 3 | . 3 . Burn 3 | . 3 . Melee Attacks . | . . . Impact . | . . . Slashing . | . . . Piercing . | . . . Sneak Attacks . | . . . Combat Hostiles . | . . . Follow-up Attacks . | . . . Damage Inflicted 248 | . 229 19 Guns 237 | . 218 19 Cannons . | . . . Explosions . | . . . Melee . | . . . Ramming 11 | . 11 . Kinetic 84 | . 78 6 Thermal 153 | . 140 13 Explosive . | . . . Electromagnetic . | . . . Impact . | . . . Slashing . | . . . Piercing . | . . . Highest Corruption . | . . . Average Corruption . | . . . Corruption Purged . | . . . Corruption Blocked . | . . . Overload Shots . | . . . Overflow Damage . | . . . Projectiles . | . . . Explosions . | . . . Melee . | . . . Knockbacks . | . . . Impact . | . . . Kinetic . | . . . Secondary . | . . . Self-Inflicted Damage . | . . . Shots . | . . . Rammed . | . . . Targets Rammed 2 | . 2 . Kicked 2 | . 2 . Crushed . | . . . Highest Temperature 365 | . 365 36 Average Temperature 173 | . 184 19 Received Heat Transfer 126 | . 126 . Effects 2 | . 2 . Energy Bleed 2 | . 2 . Siege Activations . | . . . Robots Corrupted . | . . . Combat Hostiles . | . . . Parts Fried . | . . . Impact Corruptions . | . . . Robots Melted . | . . . Combat Hostiles . | . . . Parts Melted 1 | . 1 . Heat Transferred 666 | . 629 37 Parts Sabotaged . | . . . Parts Stolen . | . . . Parts Stripped . | . . . Power Chain Reactions . | . . . Alert | -11 -10 -10 ------- Run | Yrd Mat Min Peak Influence 70 | . 70 19 Initial 19 | . . 19 Average 22 | . 33 15 Maximum Alert Level . | . . . Low Security (%) 100 | 100 100 100 Level 1 . | . . . Level 2 . | . . . Level 3 . | . . . Level 4 . | . . . Level 5 . | . . . High Security . | . . . Max Security . | . . . Squads Dispatched . | . . . Investigation . | . . . Extermination . | . . . Reinforcement . | . . . Assault . | . . . Garrison . | . . . Intercept . | . . . Searches Triggered . | . . . Construction Impeded . | . . . Haulers Reinforced . | . . . Active Scanning Responses . | . . . Cargo Convoy Interrupts . | . . . Stealth | -11 -10 -10 --------- Run | Yrd Mat Min Distress Signals . | . . . Communications Jammed . | . . . Distress Signals . | . . . Times Spotted 29 | . 5 24 Peak Tracking Total 19 | . 3 19 Tactical Retreats 4 | . 1 3 Traps | -11 -10 -10 ------- Run | Yrd Mat Min Traps Triggered 1 | . 1 . Indirectly . | . . . Trap Hack Attempts . | . . . Triggered . | . . . Disarmed . | . . . Reprogrammed . | . . . Reused . | . . . Traps Extracted . | . . . Installed . | . . . Triggered . | . . . Machines | -11 -10 -10 ---------- Run | Yrd Mat Min Machines Disabled . | . . . Max in Single Turn . | . . . Machines Repaired . | . . . Machines Dismantled . | . . . Machines Sabotaged . | . . . Overloaded Fab Kills . | . . . Hacking | -11 -10 -10 --------- Run | Yrd Mat Min Machines Accessed 1 | . 1 . Terminals 1 | . 1 . Fabricators . | . . . Repair Stations . | . . . Recycling Units . | . . . Scanalyzers . | . . . Garrison Access . | . . . Total Hacks 3 | . 3 . Successful 1 | . 1 . Failed 2 | . 2 . Catastrophic . | . . . Database Lockouts . | . . . Manual . | . . . Terminals 3 | . 3 . Fabricators . | . . . Repair Stations . | . . . Recycling Units . | . . . Scanalyzers . | . . . Garrison Access . | . . . Terminal Hacks 1 | . 1 . Record 1 | . 1 . Fabricator Hacks . | . . . Repair Station Hacks . | . . . Recycling Unit Hacks . | . . . Scanalyzer . | . . . Garrison Access Hacks . | . . . Unauthorized Hacks . | . . . Terminals . | . . . Fabricators . | . . . Repair Stations . | . . . Recycling Units . | . . . Scanalyzers . | . . . Garrison Access . | . . . Data Cores Recovered . | . . . Used . | . . . Hacking Detections 1 | . 1 . Full Trace Events 1 | . 1 . Feedback Events . | . . . Feedback Blocked . | . . . Robot Schematics Acquired . | . . . Robots Built . | . . . Authchips . | . . . Time . | . . . Total Robot Build Rating . | . . . Part Schematics Acquired . | . . . Parts Built . | . . . Authchips . | . . . Time . | . . . Total Part Build Rating . | . . . Parts Repaired . | . . . Time . | . . . Parts Recycled . | . . . Recycled Matter . | . . . Retrieved Matter . | . . . Retrieved Components . | . . . Parts Scanalyzed . | . . . Part Schematics Acquired . | . . . Parts Damaged . | . . . Bothacking | -11 -10 -10 ------------ Run | Yrd Mat Min Used RIF Installer . | . . . Robots Hacked . | . . . Non-combat . | . . . Combat . | . . . Robot Hacks Applied . | . . . Relay Couplers Released . | . . . Fabnet Peak Effective % . | . . . Robots Rewired . | . . . Allies Hacked . | . . . Hacks Repelled . | . . . Allies | -11 -10 -10 -------- Run | Yrd Mat Min Total Allies . | . . . Largest Group . | . . . Highest-Rated Group . | . . . Highest-Rated Ally . | . . . Total Orders . | . . . Ally Attacks . | . . . Total Damage . | . . . Kills . | . . . Allies Corrupted . | . . . Allies Melted . | . . . Intel | -11 -10 -10 ------- Run | Yrd Mat Min Robot Analysis Total . | . . . Derelict Logs Recovered . | . . . Drone Launches . | . . . Drone Recoveries . | . . . Exploration | -11 -10 -10 ------------- Run | Yrd Mat Min Turns Passed 688 | 90 353 245 Spaces Moved 471 | 73 196 202 Core 38 | 30 . 8 Treads . | . . . Legs 433 | 43 196 194 Wheels . | . . . Hover . | . . . Flight . | . . . Fastest Speed 50 | 50 120 50 Average Speed 116 | 102 120 117 Slowest Speed 250 | 250 120 190 Overloaded Moves . | . . . Propulsion Burnouts . | . . . Robots Hopped . | . . . Cave-ins Triggered . | . . . Exploration Rate (%) 23 | 4 38 28 Regions Visited 2 Branch Regions 1 Pre-discovered Areas . | . . . Known Exits Taken 2 | 1 1 . Unknown Exits Taken . | . . . Scrap Searched . | . . . Spaces Dug . | . . . Terrain Destroyed . | . . . Melee . | . . . Projectile . | . . . AOE . | . . . Terrain Rammed . | . . . Walls Destroyed . | . . . Machines Disabled . | . . . Actions | -11 -10 -10 --------- Run | Yrd Mat Min Total 588 | 86 294 208 Wait 77 | . 77 . Move 469 | 72 195 202 Hop . | . . . Pick Up 14 | 7 5 2 Fast Attach 3 | 3 . . Attach 7 | 4 2 1 Detach . | . . . Swap . | . . . Drop 4 | . 2 2 Fire 12 | . 11 1 Melee . | . . . Ram . | . . . Kick 2 | . 2 . Crush . | . . . Escape Stasis . | . . . Rewire . | . . . Trap . | . . . Miscellaneous . | . . . Route ------- -11/Scrapyard -10/Materials (discovered 2 exits: *Mat / *Min) -10/Mines History --------- Turn | Location | Event 4 | -11/Scrapyard | Identified exit to Materials 4 | -11/Scrapyard | Discovered exit to Materials (range 15) 91 | -11/Scrapyard | Entered Materials 91 | -10/Materials | Evolved 1 slot: Utility x1 313 | -10/Materials | Build established: Hacker-Mutant 403 | -10/Materials | Identified exit to Materials 403 | -10/Materials | Discovered exit to Materials (range 3) 427 | -10/Materials | Identified exit to Mines 427 | -10/Materials | Discovered exit to Mines (range 6) 444 | -10/Materials | Entered Mines 484 | -10/Mines | Found a hidden stash of uninstalled traps 594 | -10/Mines | Assembled infested the area 599 | -10/Mines | Assisted by a Guerilla fighting off Assembled 630 | -10/Mines | Core integrity fell below 50% 685 | -10/Mines | Core integrity fell below 20% 689 | -10/Mines | Destroyed by as-58086 with Assembled Heavy Rifle Last Messages --------------- 7A-6K3(h) destroyed. K-01 Serf destroyed. U-05 Engineer destroyed. as-78236 sneak attacks. T-07 Excavator destroyed. Aluminum Leg destroyed. Lgt. Armor Plating destroyed. Knocked back. ECM Suite destroyed. Aluminum Leg destroyed. as-36708 destroyed. Lgt. Assault Rifle destroyed. Med. Laser destroyed. Aluminum Leg destroyed. Acquired Heavy Explosive Trap. Critical hit (Destroy). Lgt. Ion Engine destroyed. Dropped Heavy Explosive Trap. Acquired Heavy Explosive Trap. Dropped Heavy Explosive Trap. Map ----- +----------------------------------------------------+ | ???????????????????????????????????? =%% ??? | | ????????????????????????????????????%!|=#??? | | ????????????????????????????????????? %#??? | | ?????????????????????????????????????" !#??? | | ?????????????????????????????????????#=%#??? | | ?????????????????????????????????????# =#??? | | ???????????????????????????####??????# #??? | | ????????????????????######## ##?????# #??? | | ????????????????????# #?????# #??? | | ????????????????????# ##????# #??? | | ???????????####?????# ##### #????# #??? | | ?????###??## ####### #???# #????#= #??? | | ????## ### ##### ##???#%*#??? | | ????# % ## ##### #??? | | ????## ###### #??? | | ?????### #????# ##### #??? | | ???????## ###??### #???##### #####??? | | ??####### #####????# ##??????# #??????? | | ?## ## ##????????# ##?????# #??????? | | ?# ##?????????# ##????# #######? | | ?# ##??????????# #????# #? | | ?## ##??????????## ##???## #### #? | | ??## """ ##??????????## ##???# #??# #? | | ???## """ ##########??# ##### #??# #? | | ????# """ a &#### #??# ## | | ????# a a @ &## #######??# | | ????## ###### & a ##????????#### | | ?????## ##????## ######????????????? | | ??????#####??????## ##?????????????????? | | ??????????????????#######??????????????????? | | ???????????????????????????????????????????? | | ???????????????????????????????????????????? | | | | | | | | | | | | | | | | | | | | | | | | | | | | | | | | | | | | | +----------------------------------------------------+ Best States ------------- Heat Dissipation 25 Energy Generation 10 Energy Capacity 125 Matter Stores 300 Matter Capacity 300 Sight Range 16 Terrain Scan Density 10 ECM Strength 1 Armor Coverage 150 Resistance: KI 35 Resistance: TH 35 Resistance: EX 35 Resistance: EM 35 Resistance: I 35 Resistance: S 35 Resistance: P 35 Evasion (%) 55 Targeting Accuracy 5 Offensive Hacking 20 Item Schematics ----------------- None Robot Schematics ------------------ None Fabricated ------------ Nothing Alien Tech Used ----------------- None Achievements -------------- None Challenges ------------ None Game ------ Seed SeismicScatterAutohacker Manual? 0 Play Time 00:09:10 Cumulative 7.8 hours Start 2024.09.02 @ 23:53:47 End 2024.09.03 @ 00:01:16 Sessions 1 Manual Loads 0 Difficulty Explorer Special Mode None Game No. 16 Rogue 4 Adventurer 11 Explorer 1 Win Type - Total 0 Types 0/0/0/0/0/0/0/0/0 Lore% 4 Gallery% 11 Achievement% 10 Wizard Run 0 Options --------- Layout 1 ASCII 0 Keyboard 0 Movement Mouse Keybinds 0 Fullscreen 2 Font 24/Smallcaps Map View 50x35 Zoom Use 0% Tactical HUD 0 Map Filters NONE Filters NONE Steam 1 RUN: 25617a2b-71b5-4cda-ae8a-acedac56bd8d